{"text_format":"2","workbook":"xlsx","n_sheets":6,"sheets":["표지","총괄","1.운용자산","2.운용인원,경력","운용경력(상세)","개인정보 수집 및 이용 동의서"],"not_rendered":{"charts":0,"images":0,"macros":0,"external_links":0,"defined_names":9,"comments":1,"pivot_tables":0},"unopened":[],"bounds":{"document_bytes":16777216,"sheet_cells":100000,"run_cost":"one","rows_first":2000,"rows_last":500,"rows_between":2000,"halvings":0,"cell_chars":16384,"cell_head_chars":4096},"cells_cut":0,"cells_raw":0,"read":"whole","date_system":"1900"}

{"sheet":"표지","index":0,"n_rows":35,"n_cols":7,"rows_kept":35,"cut":false,"hidden":false,"merged":[[29,3,30,4],[34,2,34,7],[13,2,14,7],[28,3,28,4],[28,5,28,7],[29,5,30,7],[21,3,21,4],[22,3,22,4],[23,3,23,4],[24,3,24,4],[21,6,21,7],[18,3,18,7],[22,6,22,7],[23,6,23,7],[24,6,24,7]]}
[]
[]
[null,null,"[ 작성 및 제출요령 ]"]
[null,null,"1) 표지를 포함한 모든 Sheet를 서면과 전자파일로 제출할 것"]
[null,null,"2) 반드시 노란색 음영처리된 곳만 작성할 것"]
[null,null,"3) 서면으로 제출시 인쇄영역으로 설정된 <제출시 인쇄영역>으로 설정된 부분에 한하여 출력하여 제출"]
[null,null,"4) 본 시트의 '참가자격'과 '회사명'을 제일 먼저 채우고 타 시트를 작성할 것"]
[]
[]
[null,"< 제출 시 인쇄 영역>"]
[]
[]
[]
[null,null,"이화여자대학교 기금 \n외부위탁운용(OCIO) 기관 선정"]
[]
[]
[]
[]
[null,null,null,"- 정량평가 자료 -"]
[]
[]
[null,null,null,"회사명",null,":","AA"]
[null,null,null,"대표이사명 ",null,":","AA"]
[null,null,null,"작성자 및 직위",null,":","AA"]
[null,null,null,"연락처 ",null,":","AA"]
[]
[]
[]
[null,null,null,"참가자격",null,"지원사항"]
[null,null,null,"증권",null,"이화여자대학교 기금 외부위탁운용(OCIO) \n기관선정"]
[]
[]
[]
[]
[null,null,"2025.00.00."]

{"sheet":"총괄","index":1,"n_rows":41,"n_cols":7,"rows_kept":41,"cut":false,"hidden":false,"merged":[[10,2,10,6],[28,4,28,5],[27,4,27,5],[28,2,30,2],[31,2,32,2],[38,5,38,6],[40,5,40,6],[29,4,29,5],[30,4,30,5],[31,4,31,5],[32,4,32,5],[33,4,33,6]]}
[]
[]
[null,null,"[ 작성 및 제출요령 ]"]
[null,null,"1) 표지를 포함한 모든 Sheet를 서면과 전자파일로 제출할 것"]
[null,null,"2) 반드시 노란색 음영처리된 곳만 작성할 것"]
[null,null,"3) 서면으로 제출시 인쇄영역으로 설정된 <제출시 인쇄영역>으로 설정된 부분에 한하여 출력하여 제출"]
[]
[]
[null,"< 제출 시 인쇄 영역>"]
[]
[null,null,"종합(총괄)"]
[]
[null,null,"참가자격",":",{"$f":"표지!D30","v":"증권"}]
[null,null,"회사명",":",{"$f":"표지!G22","v":"AA"}]
[null,null,"작성자 및 직위",":",{"$f":"표지!G24","v":"AA"}]
[null,null,"연락처",":",{"$f":"표지!G25","v":"AA"}]
[]
[]
[null,null,"[ 작성 및 제출요령 ]"]
[null,null,"1. 노란색 음영표시된 부분만 기재할것"]
[null,null,"2. 명시된 경우가 아니면 셀에 대한 변경(삽입, 삭제, 위치변경 등)을 하지 말 것 "]
[null,null,"3. 본 자료의 작성기준일은 공고일을 원칙으로 하며, 별도로 기준일 또는 기간을 정한 경우에는 이에 따름"]
[null,null,"4. 아래 작성 대상 항목은 금감원에 제출하는 업무보고서 및 영업보고서상의 수치와 일치하여야 함"]
[null,null,"5. 서면 제출시 <금감원에 제출하는 업무보고서 및 영업보고서의 수치와 차이 없음>을 확인하는 문구를 넣을 것"]
[null,null,"6. 별도계산으로 되어 있는 항목에 대해서는 공정성 등을 위해 구체적인 평가 및 집계방법에 대해 공개하지 아니함"]
[]
[]
[null,null,"구분","배점","평가항목",null,"값"]
[null,null,"운용자산 및 \n운용인원수\n(20)",5,{"$f":"IF($E$13=\"증권\",\"일임계약 자산총액 3년평균\",IF($E$13=\"은행\",\"연금저축신탁(채권형+안정형)총액3년평균\",IF($E$13=\"자산운용\",\"수탁총액(펀드+투자일임) 3년 평균\")))","v":"일임계약 자산총액 3년평균"},null,{"$f":"'1.운용자산'!G19:I19","v":400}]
[null,null,null,5,{"$f":"IF($E$13=\"증권\",\"일임계약 자산총액 3년증가율\",IF($E$13=\"은행\",\"연금저축신탁(채권형+안정형)총액3년증가율\",IF($E$13=\"자산운용\",\"수탁총액(펀드+투자일임) 3년 증가율\")))","v":"일임계약 자산총액 3년증가율"},null,{"$f":"'1.운용자산'!G20:I20","v":0.86111111111111105}]
[null,null,null,10,"운용관련 인원 수",null,{"$f":"'2.운용인원,경력'!E22","v":2}]
[null,null,"운용경력\n(10)",5,"운용인력 평균 현재회사 근무연수",null,{"$f":"'2.운용인원,경력'!I22","v":7.5}]
[null,null,null,5,"운용관련 업계 평균경력",null,{"$f":"'2.운용인원,경력'!M22","v":17.5}]
[null,null,"계",30]
[]
[]
[]
[]
[{"$nulls":4},"  회사명            :",{"$f":"E14","v":"AA"}]
[]
[{"$nulls":4},"  대표이사         :","(인)"]

{"sheet":"1.운용자산","index":2,"n_rows":35,"n_cols":9,"rows_kept":35,"cut":false,"hidden":false,"merged":[[10,2,10,8],[19,6,19,8],[17,2,17,5],[18,2,18,5],[19,2,19,5],[17,6,17,8],[18,6,18,8],[23,2,23,5],[24,2,24,5],[25,2,25,5],[26,2,26,5],[22,2,22,5]]}
[]
[]
[null,null,"[ 작성 및 제출요령 ]"]
[null,null,"1) 표지를 포함한 모든 Sheet를 서면과 전자파일로 제출할 것"]
[null,null,"2) 반드시 노란색 음영처리된 곳만 작성할 것"]
[null,null,"3) 서면으로 제출시 인쇄영역으로 설정된 <제출시 인쇄영역>으로 설정된 부분에 한하여 출력하여 제출"]
[]
[]
[null,"< 제출 시 인쇄 영역>"]
[]
[null,null,"1. 운용자산"]
[]
[null,null,"참가자격 :",null,{"$f":"총괄!E13","v":"증권"}]
[null,null,"회사명 :",null,{"$f":"총괄!E14","v":"AA"}]
[]
[null,null,"[운용자산]"]
[]
[null,null,"항목",null,null,null,"값"]
[null,null,{"$f":"IF($E$13=\"증권\",\"일임계약 자산총액 3년 평균\",IF($E$13=\"은행\",\"연금저축신탁(채권형+안정형)총액 3년 평균\",IF($E$13=\"자산운용\",\"수탁총액(펀드+투자일임) 3년 평균\")))","v":"일임계약 자산총액 3년 평균"},null,null,null,{"$f":"AVERAGE(G24:G26)","v":400}]
[null,null,{"$f":"IF($E$13=\"증권\",\"일임계약 자산총액 3년 증가율\",IF($E$13=\"은행\",\"연금저축신탁(채권형+안정형)총액 3년 증가율\",IF($E$13=\"자산운용\",\"수탁총액(펀드+투자일임) 3년 증가율\")))","v":"일임계약 자산총액 3년 증가율"},null,null,null,{"$f":"AVERAGE(I24:I26)","v":0.86111111111111105}]
[]
[]
[null,null,"구분",null,null,null,"금액(억원)","기준일","증가율"]
[null,null,"2024년말",null,null,null,500,"0000-00-00",{"$f":"(G24-G25)/G25","v":0.25}]
[null,null,"2023년말",null,null,null,400,"0000-00-00",{"$f":"(G25-G26)/G26","v":0.33333333333333331}]
[null,null,"2022년말",null,null,null,300,"0000-00-00",{"$f":"(G26-G27)/G27","v":2}]
[null,null,"2021년말",null,null,null,100,"0000-00-00"]
[]
[null,null,"[ 작성요령 ]"]
[null,null,"* 노란색 음영표시된 부분만 기재할것"]
[null,null,"* 셀에 대한 변경(삽입, 삭제, 위치변경 등)을 하지 말 것 "]
[null,null,"* 작성된 자료내용은 검증할 수 있는 공시자료와 일치하여야 함"]
[null,null,"(1) 증권사 -> 금융투자협회 전자공시서비스 영업보고서"]
[null,null,"(2) 운용사 -> 금융투자협회 종합통계서비스 집계 기준"]
[null,null,"* 매년말 기준으로 작성"]

{"sheet":"2.운용인원,경력","index":3,"n_rows":44,"n_cols":16,"rows_kept":44,"cut":false,"hidden":false,"merged":[[40,3,41,3],[40,4,41,4],[40,6,41,6],[40,8,41,8],[40,7,41,7],[40,5,41,5],[13,2,13,15],[20,2,21,3],[20,4,20,7],[21,4,21,7],[40,10,40,12],[40,13,40,15],[20,8,20,11],[20,12,20,15],[21,8,21,11],[21,12,21,15],[40,9,41,9],[40,2,41,2]]}
[]
[]
[null,null,"[ 작성 및 제출요령 ]"]
[null,null,"1) 표지를 포함한 모든 Sheet를 서면과 전자파일로 제출할 것"]
[null,null,"2) 반드시 노란색 음영처리된 곳만 작성할 것"]
[null,null,"3) 서면으로 제출시 인쇄영역으로 설정된 <제출시 인쇄영역>으로 설정된 부분에 한하여 출력하여 제출"]
[null,null,"4) 출력시 페이지 너비와 길이에 따라 설정을 변경하여 내용의 식별이 가능하도록 할 것"]
[null,null,"5) 본 자료의 작성기준일은 제안요청 공고일임"]
[null,null,"6) 운용인력 시트와 업계경력 시트의 순번과 순서를 동일하게 할 것"]
[]
[]
[null,"< 제출 시 인쇄 영역>"]
[]
[null,null,"2-1. 운용인력"]
[]
[null,null,"참가자격 :",null,{"$f":"'1.운용자산'!E13","v":"증권"}]
[null,null,"회사명 :",null,{"$f":"'1.운용자산'!E14","v":"AA"}]
[]
[null,null,"[운용인력]"]
[]
[null,null,"항목",null,"운용관련 인원 수",null,null,null,"전체운용인력 현회사 평균경력",null,null,null,"전체운용인력 업계 평균경력"]
[{"$nulls":4},{"$f":"COUNTA(C43:C61)","v":2},null,null,null,{"$f":"SUM(L43:L61)/$E$22","v":7.5},null,null,null,{"$f":"SUM(O43:O61)/$E$22","v":17.5}]
[]
[]
[]
[null,null,"[작성요령]"]
[null,null,"1. 작성기준일은 공고일을 원칙으로 함"]
[null,null,"2. 노란색 음영표시된 부분만 기재할 것"]
[null,null,"3. 회색 음영표시셀에 대한 변경(삽입, 삭제, 위치변경 등)을 하지 말 것 "]
[null,null,"4. 입사일, 부서, 직급, 담당업무는 현 회사 기준으로 작성"]
[null,null,"5. 해당 부서가 표시된 조직도(인원 포함) 첨부"]
[null,null,"6. 전체 운용인력 업계 평균경력 = (현 직장 경력을 포함한 총 운용경력의 합) / (전체 운용인력 수)"]
[null,null,"7. 전체 운용인력 평균 현재회사 근무연수 = (현 직장 운용경력의 합) / (전체 운용인력 수)"]
[null,null,"8. 운용담당인력은 투자자산운용사(구 일반운용전문인력) 자격증(금융투자협회 발행) 소지자에 한함"]
[null,null,"  - 범위 : 랩 전담(운용·전략·랩 자산배분) 부서(증권), 전사(자산운용)"]
[null,null,"  - 제외 인력 : 타기관 전담운용인력, 랩 관련 오퍼레이션 또는 지원 부서 인력, 조사분석인력, 위험관리인력, 해외지사 근무인력"]
[null,null,"9. 총경력은 타 금융기관에서의 운용 관련 경력을 합계한 수치임"]
[]
[null,null,"[인력현황]"]
[]
[null,null,"순번","성명","생년월일","입사일","부서","직급","담당업무","투자자산운용사\n자격등록번호","현 직장 경력(개월)",null,null,"현 직장 포함 총 경력(개월)"]
[{"$nulls":10},"총경력","운용","기타","총경력","운용","기타"]
[null,null,1,"홍길동","0000-00-00","0000-00-00","채권운용 1팀","부장","운용","0000000000",{"$f":"SUM(L43:M43)","v":15},10,5,{"$f":"SUM(O43:P43)","v":40},25,15]
[null,null,2,"김철수","0000-00-00","0000-00-00","주식운용 2팀","과장","운용","0000000000",10,5,5,20,10,10]

{"sheet":"운용경력(상세)","index":4,"n_rows":35,"n_cols":11,"rows_kept":35,"cut":false,"hidden":false,"merged":[[30,9,31,9],[30,10,31,10],[13,2,13,10],[30,2,31,2],[30,3,31,3],[30,4,31,4],[30,5,31,5],[30,6,30,8]]}
[]
[]
[null,null,"[ 작성 및 제출요령 ]"]
[null,null,"1) 표지를 포함한 모든 Sheet를 서면과 전자파일로 제출할 것"]
[null,null,"2) 반드시 노란색 음영처리된 곳만 작성할 것"]
[null,null,"3) 서면으로 제출시 인쇄영역으로 설정된 <제출시 인쇄영역>으로 설정된 부분에 한하여 출력하여 제출"]
[null,null,"4) 출력시 페이지 너비와 길이에 따라 설정을 변경하여 내용의 식별이 가능하도록 할 것"]
[null,null,"5) 본 자료의 작성기준일은 제안요청 공고일임"]
[null,null,"6) 운용인력 시트와 업계경력 시트의 순번과 순서를 동일하게 할 것"]
[]
[]
[null,"< 제출 시 인쇄 영역>"]
[]
[null,null,"2-2. 운용인력 업계경력"]
[]
[null,null,"참가자격 :",null,{"$f":"'2.운용인원,경력'!E16","v":"증권"}]
[null,null,"회사명 :",null,{"$f":"'2.운용인원,경력'!E17","v":"AA"}]
[]
[null,null,"[작성요령]"]
[null,null,"1. 작성기준일은 공고일을 원칙으로 함"]
[null,null,"2. 노란색 음영표시된 부분만 기재할 것"]
[null,null,"3. 회색 음영표시셀에 대한 변경(삽입, 삭제, 위치변경 등)을 하지 말 것 "]
[null,null,"4. 운용담당인력은 투자자산운용사(구 일반운용전문인력) 자격증(금융투자협회 발행) 소지자에 한함"]
[null,null,"  - 제외 인력 : 타기관 전담운용인력, 랩 관련 오퍼레이션 또는 지원 부서 인력, 조사분석인력, 위험관리인력, 해외지사 근무인력"]
[null,null,"5. 금융투자회사(은행 등 겸영업자 포함)에서의 운용·전략·자산배분 관련 업무 경력에 한함"]
[null,null,"6. 총경력은 타 금융기관에서의 운용 관련 경력을 합계한 수치임"]
[null,null,"7. 2-1의 근무기간(경력), 운용인력과 2-2의 근무기간 및 운용인력은 일치하여야 함"]
[]
[null,null,"[업계경력]"]
[]
[null,null,"순번","성명","생년월일","부서명","근무기간(월)",null,null,"회사명","담당 업무"]
[{"$nulls":6},"FROM","TO","기간"]
[null,null,1,"홍길동","0000-00-00","채권운용1팀","2008-06-01","2016-09-30",{"$f":"DATEDIF(G33,H33+1,\"y\")*12+DATEDIF(G33,H33+1,\"ym\")","v":100},{"$f":"IF(E16=\"증권\",\"BB증권\",\"BB운용\")","v":"BB증권"},"운용"]
[null,null,1,"홍길동","0000-00-00","주식운용 2팀","2016-10-01","2019-03-30",{"$f":"DATEDIF(G34,H34+1,\"y\")*12+DATEDIF(G34,H34+1,\"ym\")","v":29},{"$f":"IF($E$16=\"증권\",\"AA증권\",\"AA운용\")","v":"AA증권"},"운용"]
[null,null,2,"김철수","0000-00-00","주식운용 2팀","2018-01-01","2019-03-30",{"$f":"DATEDIF(G35,H35+1,\"y\")*12+DATEDIF(G35,H35+1,\"ym\")","v":14},{"$f":"IF($E$16=\"증권\",\"AA증권\",\"AA운용\")","v":"AA증권"},"운용"]

{"sheet":"개인정보 수집 및 이용 동의서","index":5,"n_rows":31,"n_cols":3,"rows_kept":31,"cut":false,"hidden":false,"merged":[[17,2,17,9],[20,2,20,9],[22,2,22,9],[27,2,27,9],[3,2,3,9],[5,2,6,9],[13,2,14,9]]}
[]
[]
[]
[null,null,"이화여자대학교 위탁운용기관 선정심사를 위한 개인정보 수집ㆍ이용 동의서"]
[]
[null,null,"본교는 위탁운용기관 선정심사와 관련하여 아래와 같이 개인정보를 수집 및 이용하고자 합니다. 내용을 자세히 읽으신 후 동의 여부를 결정하여 주십시오."]
[]
[]
[null,null,"목적 : 위탁운용기관 선정심사와 관련한 심사자격 확인"]
[null,null,"항목 : 성명, 생년월일, 운용 인력의 자격등록번호, 경력사항"]
[null,null,"보유기간 : 5년"]
[]
[]
[null,null,"※ 위 개인정보 수집ㆍ이용에 대한 동의를 거부할 권리가 있으나, 동의를 거부할 경우 이화여자대학교 위탁운용기관 선정공모 참여에 제한을 받을 수 있습니다."]
[]
[]
[]
[null,null,"위 개인정보 수집ㆍ이용에 (□ 동의함 □ 동의하지 않음)"]
[]
[]
[null,null,"2025년      월       일"]
[]
[null,null,"성명 :                         (서명 또는 인)"]
[]
[]
[]
[]
[null,null,"이화여자대학교 총장 귀하"]
[]
[]
[null,null,"※ 제안서에 개인 식별정보 등이 기재된 임직원 전원의 서명 필요"]